[Event "NK 2022"]
[Site "Groningen, Netherlands"]
[Date "2022.12.27"]
[Round "9.1"]
[White "Warmerdam, Max"]
[Black "Kevlishvili, Robby"]
[Result "1/2-1/2"]
[TimeControl "40/90; 30 minutes + increment 30 seconds from start"]
[WhiteTitle "GM"]
[BlackTitle "GM"]
[WhiteFideId "1048104"]
[BlackFideId "1040634"]
[WhiteElo "2619"]
[BlackElo "2530"]

1. e4 {[%clk 01:30:55]} {[%emt 00:00:03]} e5 {[%clk 01:30:55]} {[%emt
00:00:07]} 2. Nf3 {[%clk 01:30:26]} {[%emt 00:00:59]} Nc6 {[%clk 01:31:19]}
{[%emt 00:00:06]} 3. d4 {[%clk 01:30:14]} {[%emt 00:00:42]} exd4 {[%clk
01:31:41]} {[%emt 00:00:08]} 4. Nxd4 {[%clk 01:30:38]} {[%emt 00:00:06]} Nf6
{[%clk 01:32:02]} {[%emt 00:00:09]} 5. Nc3 {[%clk 01:30:57]} {[%emt 00:00:10]}
Bb4 {[%clk 01:32:15]} {[%emt 00:00:17]} 6. Nxc6 {[%clk 01:31:22]} {[%emt
00:00:06]} bxc6 {[%clk 01:32:31]} {[%emt 00:00:13]} 7. Bd3 {[%clk 01:31:47]}
{[%emt 00:00:05]} O-O {[%clk 01:32:42]} {[%emt 00:00:19]} 8. O-O {[%clk
01:32:12]} {[%emt 00:00:04]} d5 {[%clk 01:33:01]} {[%emt 00:00:11]} 9. exd5
{[%clk 01:32:31]} {[%emt 00:00:12]} cxd5 {[%clk 01:32:34]} {[%emt 00:00:56]} 10.
h3 {[%clk 01:31:55]} {[%emt 00:01:05]} c6 {[%clk 01:32:00]} {[%emt 00:01:05]}
11. Bf4 {[%clk 01:29:50]} {[%emt 00:02:35]} a5 {[%clk 01:31:20]} {[%emt
00:01:10]} 12. Ne2 {[%clk 01:24:42]} {[%emt 00:05:37]} Bd6 {[%clk 01:29:32]}
{[%emt 00:02:18]} 13. Qd2 {[%clk 01:23:21]} {[%emt 00:01:51]} c5 {[%clk
01:22:07]} {[%emt 00:07:55]} 14. Rad1 {[%clk 01:18:39]} {[%emt 00:05:12]} Be6
{[%clk 01:17:16]} {[%emt 00:05:21]} 15. b3 {[%clk 01:13:00]} {[%emt 00:06:09]}
a4 {[%clk 01:13:08]} {[%emt 00:04:38]} 16. Rfe1 {[%clk 01:05:26]} {[%emt
00:08:04]} axb3 {[%clk 01:12:11]} {[%emt 00:01:27]} 17. axb3 {[%clk 01:05:19]}
{[%emt 00:00:37]} Be7 {[%clk 01:00:06]} {[%emt 00:12:34]} 18. Ng3 {[%clk
00:55:30]} {[%emt 00:10:19]} d4 {[%clk 00:41:44]} {[%emt 00:18:52]} 19. Be5
{[%clk 00:39:24]} {[%emt 00:16:36]} Nd5 {[%clk 00:35:02]} {[%emt 00:07:12]} 20.
Nh5 {[%clk 00:35:32]} {[%emt 00:04:21]} Bg5 {[%clk 00:35:18]} {[%emt 00:00:14]}
21. f4 {[%clk 00:34:10]} {[%emt 00:01:52]} Bh6 {[%clk 00:35:43]} {[%emt
00:00:05]} 22. Qf2 {[%clk 00:28:20]} {[%emt 00:06:20]} Kh8 {[%clk 00:13:38]}
{[%emt 00:22:35]} 23. f5 {[%clk 00:28:34]} {[%emt 00:00:16]} f6 {[%clk
00:13:31]} {[%emt 00:00:37]} 24. Bxd4 {[%clk 00:25:01]} {[%emt 00:04:03]} Bf7
{[%clk 00:12:34]} {[%emt 00:01:27]} 25. Bxc5 {[%clk 00:24:49]} {[%emt
00:00:42]} Bxh5 {[%clk 00:12:59]} {[%emt 00:00:05]} 26. g4 {[%clk 00:11:28]}
{[%emt 00:13:50]} Bf7 {[%clk 00:10:58]} {[%emt 00:02:31]} 27. Be4 {[%clk
00:10:36]} {[%emt 00:01:22]} Re8 {[%clk 00:08:04]} {[%emt 00:03:24]} 28. c4
{[%clk 00:10:54]} {[%emt 00:00:11]} Rxe4 {[%clk 00:03:25]} {[%emt 00:05:09]} 29.
Rxe4 {[%clk 00:11:01]} {[%emt 00:00:23]} Qb8 {[%clk 00:03:52]} {[%emt
00:00:03]} 30. cxd5 {[%clk 00:07:24]} {[%emt 00:04:08]} Qxb3 {[%clk 00:04:17]}
{[%emt 00:00:05]} 31. Rde1 {[%clk 00:04:00]} {[%emt 00:03:54]} Qxd5 {[%clk
00:04:30]} {[%emt 00:00:16]} 32. R4e2 {[%clk 00:03:36]} {[%emt 00:00:54]} Rc8
{[%clk 00:02:46]} {[%emt 00:02:15]} 33. Be3 {[%clk 00:03:53]} {[%emt 00:00:13]}
Bxe3 {[%clk 00:03:12]} {[%emt 00:00:04]} 34. Qxe3 {[%clk 00:03:55]} {[%emt
00:00:28]} h6 {[%clk 00:03:38]} {[%emt 00:00:04]} 35. Rc1 {[%clk 00:03:39]}
{[%emt 00:00:46]} Rb8 {[%clk 00:02:39]} {[%emt 00:01:28]} 36. Rd2 {[%clk
00:03:57]} {[%emt 00:00:13]} Qa5 {[%clk 00:02:59]} {[%emt 00:00:09]} 37. Qc3
{[%clk 00:03:57]} {[%emt 00:00:30]} Qb6+ {[%clk 00:03:03]} {[%emt 00:00:27]} 38.
Qc5 {[%clk 00:03:47]} {[%emt 00:00:39]} Qb3 {[%clk 00:03:26]} {[%emt 00:00:06]}
39. Qc3 {[%clk 00:04:03]} {[%emt 00:00:14]} Qb6+ {[%clk 00:03:48]} {[%emt
00:00:09]} 40. Qd4 {[%clk 00:04:29]} {[%emt 00:00:04]} Qb3 {[%clk 00:03:54]}
{[%emt 00:00:23]} 41. Kh2 {[%clk 00:29:31]} {[%emt 00:05:29]} Re8 {[%clk
00:32:53]} {[%emt 00:01:31]} 42. Qc3 {[%clk 00:28:01]} {[%emt 00:02:00]} Qa4
{[%clk 00:31:04]} {[%emt 00:02:18]} 43. Kg3 {[%clk 00:23:34]} {[%emt 00:04:58]}
Qa7 {[%clk 00:30:22]} {[%emt 00:01:11]} 44. Kh4 {[%clk 00:21:28]} {[%emt
00:02:36]} Kh7 {[%clk 00:28:39]} {[%emt 00:02:13]} 45. Qc5 {[%clk 00:19:59]}
{[%emt 00:01:59]} Qa4 {[%clk 00:26:02]} {[%emt 00:03:07]} 46. Qc7 {[%clk
00:20:01]} {[%emt 00:00:28]} Rf8 {[%clk 00:23:55]} {[%emt 00:02:37]} 47. Re1
{[%clk 00:12:10]} {[%emt 00:08:21]} Qb4 {[%clk 00:17:57]} {[%emt 00:06:28]} 48.
Ree2 {[%clk 00:11:31]} {[%emt 00:01:09]} Qb3 {[%clk 00:09:42]} {[%emt
00:08:45]} 49. Rd8 {[%clk 00:04:43]} {[%emt 00:07:19]} Rxd8 {[%clk 00:08:11]}
{[%emt 00:02:01]} 50. Qxd8 {[%clk 00:05:11]} {[%emt 00:00:02]} h5 {[%clk
00:04:20]} {[%emt 00:04:21]} 51. Qd4 {[%clk 00:04:56]} {[%emt 00:00:45]} hxg4
{[%clk 00:04:21]} {[%emt 00:00:29]} 52. hxg4 {[%clk 00:02:50]} {[%emt
00:02:36]} g5+ {[%clk 00:03:27]} {[%emt 00:01:24]} 53. fxg6+ {[%clk 00:03:19]}
{[%emt 00:00:02]} Kxg6 {[%clk 00:03:52]} {[%emt 00:00:05]} 54. Qf4 {[%clk
00:02:29]} {[%emt 00:01:19]} Qd5 {[%clk 00:02:08]} {[%emt 00:02:15]} 55. Kg3
{[%clk 00:01:47]} {[%emt 00:01:13]} Kg7 {[%clk 00:01:46]} {[%emt 00:00:52]} 56.
Rf2 {[%clk 00:02:07]} {[%emt 00:00:10]} Qe6 {[%clk 00:02:04]} {[%emt 00:00:12]}
57. Kh4 {[%clk 00:02:27]} {[%emt 00:00:10]} Qc6 {[%clk 00:02:15]} {[%emt
00:00:19]} 58. Kg3 {[%clk 00:02:40]} {[%emt 00:00:18]} Qe6 {[%clk 00:02:40]}
{[%emt 00:00:05]} 59. Qd4 {[%clk 00:03:01]} {[%emt 00:00:08]} Kg6 {[%clk
00:03:00]} {[%emt 00:00:09]} 60. Rf1 {[%clk 00:02:32]} {[%emt 00:00:59]} Qb3+
{[%clk 00:03:15]} {[%emt 00:00:15]} 61. Kh4 {[%clk 00:02:48]} {[%emt 00:00:14]}
Qe6 {[%clk 00:03:41]} {[%emt 00:00:06]} 62. Qf4 {[%clk 00:01:58]} {[%emt
00:01:20]} Kg7 {[%clk 00:03:51]} {[%emt 00:00:20]} 63. Rd1 {[%clk 00:01:53]}
{[%emt 00:00:34]} Qc6 {[%clk 00:03:47]} {[%emt 00:00:34]} 64. Rg1 {[%clk
00:01:47]} {[%emt 00:00:36]} Qb6 {[%clk 00:03:48]} {[%emt 00:00:29]} 65. Rc1
{[%clk 00:01:59]} {[%emt 00:00:18]} Qe6 {[%clk 00:04:10]} {[%emt 00:00:09]} 66.
Rf1 {[%clk 00:01:40]} {[%emt 00:00:49]} Bg6 {[%clk 00:04:03]} {[%emt 00:00:36]}
67. Qd4 {[%clk 00:01:50]} {[%emt 00:00:20]} Qa6 {[%clk 00:03:48]} {[%emt
00:00:45]} 68. Rf2 {[%clk 00:00:55]} {[%emt 00:01:25]} Qc6 {[%clk 00:04:11]}
{[%emt 00:00:07]} 69. Kg3 {[%clk 00:01:13]} {[%emt 00:00:12]} Qc7+ {[%clk
00:04:27]} {[%emt 00:00:13]} 70. Rf4 {[%clk 00:01:36]} {[%emt 00:00:08]} Qe7
{[%clk 00:04:23]} {[%emt 00:00:34]} 71. g5 {[%clk 00:01:13]} {[%emt 00:00:53]}
Qe1+ {[%clk 00:04:40]} {[%emt 00:00:13]} 72. Kg2 {[%clk 00:01:37]} {[%emt
00:00:06]} Qe2+ {[%clk 00:04:50]} {[%emt 00:00:20]} 73. Kg3 {[%clk 00:01:57]}
{[%emt 00:00:11]} Qe1+ {[%clk 00:05:14]} {[%emt 00:00:05]} 74. Kh2 {[%clk
00:01:38]} {[%emt 00:00:48]} Qe2+ {[%clk 00:05:35]} {[%emt 00:00:09]} 75. Kh1
{[%clk 00:01:36]} {[%emt 00:00:32]} Qe1+ {[%clk 00:05:40]} {[%emt 00:00:25]} 76.
Kh2 {[%clk 00:01:54]} {[%emt 00:00:12]} Qe2+ {[%clk 00:06:06]} {[%emt
00:00:04]} 1/2-1/2

[Event "NK 2022"]
[Site "Groningen, Netherlands"]
[Date "2022.12.27"]
[Round "9.2"]
[White "Pruijssers, Roeland"]
[Black "L'Ami, Erwin"]
[Result "0-1"]
[TimeControl "40/90; 30 minutes + increment 30 seconds from start"]
[WhiteTitle "GM"]
[BlackTitle "GM"]
[WhiteFideId "1013068"]
[WhiteElo "2538"]
[BlackElo "2627"]

1. e4 {[%clk 01:30:55]} {[%emt 00:00:04]} e5 {[%clk 01:30:50]} {[%emt
00:00:10]} 2. Nf3 {[%clk 01:31:15]} {[%emt 00:00:10]} Nc6 {[%clk 01:31:13]}
{[%emt 00:00:07]} 3. d4 {[%clk 01:31:39]} {[%emt 00:00:06]} exd4 {[%clk
01:31:35]} {[%emt 00:00:09]} 4. Nxd4 {[%clk 01:32:02]} {[%emt 00:00:07]} Nf6
{[%clk 01:31:44]} {[%emt 00:00:20]} 5. Nxc6 {[%clk 01:32:23]} {[%emt 00:00:09]}
bxc6 {[%clk 01:32:08]} {[%emt 00:00:06]} 6. e5 {[%clk 01:32:47]} {[%emt
00:00:06]} Qe7 {[%clk 01:31:39]} {[%emt 00:00:59]} 7. Qe2 {[%clk 01:33:06]}
{[%emt 00:00:11]} Nd5 {[%clk 01:31:55]} {[%emt 00:00:14]} 8. h4 {[%clk
01:33:20]} {[%emt 00:00:15]} d6 {[%clk 01:24:38]} {[%emt 00:07:48]} 9. c4
{[%clk 01:32:03]} {[%emt 00:01:47]} Nb6 {[%clk 01:22:48]} {[%emt 00:02:19]} 10.
exd6 {[%clk 01:31:48]} {[%emt 00:00:45]} Qxe2+ {[%clk 01:19:47]} {[%emt
00:03:31]} 11. Bxe2 {[%clk 01:28:22]} {[%emt 00:03:56]} cxd6 {[%clk 01:20:00]}
{[%emt 00:00:17]} 12. Nc3 {[%clk 01:22:07]} {[%emt 00:06:46]} Be6 {[%clk
01:12:59]} {[%emt 00:07:31]} 13. b3 {[%clk 01:21:57]} {[%emt 00:00:40]} d5
{[%clk 01:07:02]} {[%emt 00:06:27]} 14. cxd5 {[%clk 01:20:24]} {[%emt
00:02:04]} Nxd5 {[%clk 01:07:03]} {[%emt 00:00:29]} 15. Nxd5 {[%clk 00:58:51]}
{[%emt 00:22:03]} Bxd5 {[%clk 01:07:16]} {[%emt 00:00:17]} 16. Kf1 {[%clk
00:59:11]} {[%emt 00:00:10]} Be7 {[%clk 01:01:08]} {[%emt 00:06:38]} 17. Bb2
{[%clk 00:54:25]} {[%emt 00:05:17]} O-O {[%clk 00:58:03]} {[%emt 00:03:35]} 18.
Rh3 {[%clk 00:46:33]} {[%emt 00:08:21]} a5 {[%clk 00:55:40]} {[%emt 00:02:53]}
19. h5 {[%clk 00:35:16]} {[%emt 00:11:47]} a4 {[%clk 00:52:53]} {[%emt
00:03:17]} 20. Bf3 {[%clk 00:31:31]} {[%emt 00:04:15]} Rfd8 {[%clk 00:50:38]}
{[%emt 00:02:45]} 21. Rg3 {[%clk 00:18:20]} {[%emt 00:13:42]} f6 {[%clk
00:45:31]} {[%emt 00:05:37]} 22. Re1 {[%clk 00:14:49]} {[%emt 00:04:00]} Ra7
{[%clk 00:43:43]} {[%emt 00:02:19]} 23. bxa4 {[%clk 00:10:37]} {[%emt
00:04:43]} Kf7 {[%clk 00:39:17]} {[%emt 00:04:54]} 24. a3 {[%clk 00:07:25]}
{[%emt 00:03:42]} Rxa4 {[%clk 00:30:18]} {[%emt 00:09:29]} 25. Bd1 {[%clk
00:02:10]} {[%emt 00:05:45]} Rh4 {[%clk 00:28:19]} {[%emt 00:02:29]} 26. Kg1
{[%clk 00:02:38]} {[%emt 00:00:02]} Bd6 {[%clk 00:23:48]} {[%emt 00:05:01]} 27.
Rg4 {[%clk 00:02:07]} {[%emt 00:01:01]} Rxg4 {[%clk 00:23:26]} {[%emt
00:00:52]} 28. Bxg4 {[%clk 00:02:35]} {[%emt 00:00:02]} Rb8 {[%clk 00:23:32]}
{[%emt 00:00:25]} 29. Bc1 {[%clk 00:02:29]} {[%emt 00:00:36]} g6 {[%clk
00:18:16]} {[%emt 00:05:45]} 30. hxg6+ {[%clk 00:01:49]} {[%emt 00:01:11]} hxg6
{[%clk 00:18:39]} {[%emt 00:00:07]} 31. Bd1 {[%clk 00:01:28]} {[%emt 00:00:52]}
Rb1 {[%clk 00:16:53]} {[%emt 00:02:15]} 32. Bc2 {[%clk 00:01:51]} {[%emt
00:00:07]} Ra1 {[%clk 00:16:50]} {[%emt 00:00:33]} 33. a4 {[%clk 00:02:06]}
{[%emt 00:00:15]} Ra2 {[%clk 00:17:01]} {[%emt 00:00:18]} 34. Bd3 {[%clk
00:00:43]} {[%emt 00:01:54]} Bb4 {[%clk 00:13:30]} {[%emt 00:04:01]} 35. Rf1
{[%clk 00:00:50]} {[%emt 00:00:23]} Bc5 {[%clk 00:13:31]} {[%emt 00:00:29]} 36.
Bf4 {[%clk 00:00:39]} {[%emt 00:00:41]} Rxa4 {[%clk 00:13:22]} {[%emt
00:00:38]} 37. Bc1 {[%clk 00:00:32]} {[%emt 00:00:37]} Rg4 {[%clk 00:13:28]}
{[%emt 00:00:24]} 0-1

[Event "NK 2022"]
[Site "Groningen, Netherlands"]
[Date "2022.12.28"]
[Round "10.1"]
[White "Kevlishvili, Robby"]
[Black "Warmerdam, Max"]
[Result "1/2-1/2"]
[TimeControl "40/90; 30 minutes + increment 30 seconds from start"]
[WhiteTitle "GM"]
[BlackTitle "GM"]
[WhiteFideId "1040634"]
[BlackFideId "1048104"]
[WhiteElo "2530"]
[BlackElo "2619"]

1. e4 {[%clk 01:30:56]} {[%emt 00:00:04]} c5 {[%clk 01:30:56]} {[%emt
00:00:05]} 2. Nf3 {[%clk 01:31:21]} {[%emt 00:00:04]} d6 {[%clk 01:31:22]}
{[%emt 00:00:04]} 3. d4 {[%clk 01:31:46]} {[%emt 00:00:05]} cxd4 {[%clk
01:31:49]} {[%emt 00:00:03]} 4. Nxd4 {[%clk 01:32:11]} {[%emt 00:00:05]} Nf6
{[%clk 01:32:15]} {[%emt 00:00:04]} 5. Nc3 {[%clk 01:32:36]} {[%emt 00:00:05]}
a6 {[%clk 01:32:42]} {[%emt 00:00:03]} 6. Bd3 {[%clk 01:33:00]} {[%emt
00:00:05]} e5 {[%clk 01:33:08]} {[%emt 00:00:04]} 7. Nde2 {[%clk 01:33:26]}
{[%emt 00:00:05]} Be6 {[%clk 01:33:34]} {[%emt 00:00:04]} 8. f4 {[%clk
01:32:45]} {[%emt 00:01:10]} Be7 {[%clk 01:33:52]} {[%emt 00:00:12]} 9. O-O
{[%clk 01:32:54]} {[%emt 00:00:21]} O-O {[%clk 01:34:17]} {[%emt 00:00:06]} 10.
Kh1 {[%clk 01:32:59]} {[%emt 00:00:25]} exf4 {[%clk 01:34:34]} {[%emt
00:00:14]} 11. Nxf4 {[%clk 01:33:01]} {[%emt 00:00:28]} Nc6 {[%clk 01:34:58]}
{[%emt 00:00:05]} 12. b3 {[%clk 01:29:56]} {[%emt 00:03:34]} Ne5 {[%clk
01:33:31]} {[%emt 00:01:56]} 13. Bb2 {[%clk 01:29:39]} {[%emt 00:00:48]} Nfd7
{[%clk 01:30:15]} {[%emt 00:03:47]} 14. Ncd5 {[%clk 01:27:58]} {[%emt
00:02:11]} Bg5 {[%clk 01:28:52]} {[%emt 00:01:52]} 15. a4 {[%clk 01:20:59]}
{[%emt 00:07:29]} Rc8 {[%clk 01:06:44]} {[%emt 00:22:38]} 16. a5 {[%clk
01:16:27]} {[%emt 00:05:02]} Ng6 {[%clk 01:05:09]} {[%emt 00:02:05]} 17. Nxg6
{[%clk 01:01:46]} {[%emt 00:15:12]} hxg6 {[%clk 01:05:20]} {[%emt 00:00:18]} 18.
Bc4 {[%clk 01:02:09]} {[%emt 00:00:07]} Re8 {[%clk 01:03:17]} {[%emt 00:02:33]}
19. Qf3 {[%clk 01:01:07]} {[%emt 00:01:31]} Bf6 {[%clk 00:32:03]} {[%emt
00:31:44]} 20. Nxf6+ {[%clk 00:55:37]} {[%emt 00:06:00]} Nxf6 {[%clk 00:31:19]}
{[%emt 00:01:13]} 21. Bd3 {[%clk 00:55:16]} {[%emt 00:00:51]} Ng4 {[%clk
00:31:44]} {[%emt 00:00:06]} 22. Qg3 {[%clk 00:54:20]} {[%emt 00:01:27]} Rc5
{[%clk 00:29:46]} {[%emt 00:02:28]} 23. b4 {[%clk 00:49:39]} {[%emt 00:05:11]}
Rh5 {[%clk 00:29:45]} {[%emt 00:00:31]} 24. h3 {[%clk 00:49:13]} {[%emt
00:00:56]} Ne5 {[%clk 00:29:57]} {[%emt 00:00:17]} 25. Rad1 {[%clk 00:37:22]}
{[%emt 00:12:20]} Qc8 {[%clk 00:28:11]} {[%emt 00:02:16]} 26. Kg1 {[%clk
00:31:01]} {[%emt 00:06:51]} f6 {[%clk 00:23:26]} {[%emt 00:05:15]} 27. Bc1
{[%clk 00:26:33]} {[%emt 00:04:58]} Qc3 {[%clk 00:12:53]} {[%emt 00:11:03]} 28.
Bd2 {[%clk 00:23:06]} {[%emt 00:03:57]} Qd4+ {[%clk 00:13:15]} {[%emt
00:00:08]} 29. Be3 {[%clk 00:23:09]} {[%emt 00:00:27]} Qc3 {[%clk 00:10:54]}
{[%emt 00:02:51]} 30. Bd2 {[%clk 00:20:26]} {[%emt 00:03:12]} Qd4+ {[%clk
00:11:07]} {[%emt 00:00:17]} 31. Be3 {[%clk 00:20:53]} {[%emt 00:00:04]} Qxb4
{[%clk 00:08:21]} {[%emt 00:03:16]} 32. Rb1 {[%clk 00:21:19]} {[%emt 00:00:04]}
Qxa5 {[%clk 00:08:37]} {[%emt 00:00:14]} 33. Rxb7 {[%clk 00:21:44]} {[%emt
00:00:04]} Qc3 {[%clk 00:08:36]} {[%emt 00:00:31]} 34. Rfb1 {[%clk 00:20:26]}
{[%emt 00:01:48]} g5 {[%clk 00:06:55]} {[%emt 00:02:11]} 35. Bxa6 {[%clk
00:15:04]} {[%emt 00:05:51]} Qxc2 {[%clk 00:06:24]} {[%emt 00:01:02]} 36. Rc1
{[%clk 00:14:41]} {[%emt 00:00:53]} Qxe4 {[%clk 00:06:41]} {[%emt 00:00:13]} 37.
Rcc7 {[%clk 00:14:56]} {[%emt 00:00:15]} Rh7 {[%clk 00:06:57]} {[%emt
00:00:14]} 38. Bf2 {[%clk 00:15:00]} {[%emt 00:00:26]} Bd5 {[%clk 00:07:00]}
{[%emt 00:00:27]} 39. Rb6 {[%clk 00:12:43]} {[%emt 00:02:47]} g4 {[%clk
00:02:53]} {[%emt 00:04:37]} 40. hxg4 {[%clk 00:12:21]} {[%emt 00:00:52]} Rh4
{[%clk 00:03:14]} {[%emt 00:00:09]} 41. Bc8 {[%clk 00:06:54]} {[%emt 00:05:57]}
g5 {[%clk 00:19:53]} {[%emt 00:13:51]} 42. Bf5 {[%clk 00:23:57]} {[%emt
00:13:26]} Qe2 {[%clk 00:18:58]} {[%emt 00:01:26]} 43. Rb1 {[%clk 00:24:07]}
{[%emt 00:00:20]} Nxg4 {[%clk 00:16:51]} {[%emt 00:02:37]} 44. Rc2 {[%clk
00:23:58]} {[%emt 00:00:40]} Qe7 {[%clk 00:14:03]} {[%emt 00:03:17]} 45. Qd3
{[%clk 00:13:23]} {[%emt 00:11:05]} Qe5 {[%clk 00:13:57]} {[%emt 00:00:36]} 46.
Bg3 {[%clk 00:13:13]} {[%emt 00:00:40]} Qe3+ {[%clk 00:14:09]} {[%emt
00:00:18]} 47. Qxe3 {[%clk 00:13:37]} {[%emt 00:00:06]} Nxe3 {[%emt 00:01:49]}
48. Re2 {[%clk 00:12:38]} Ra4 {[%clk 00:11:35]} {[%emt 00:03:14]} 49. Bd7
{[%clk 00:08:48]} {[%emt 00:04:19]} Ra2 {[%clk 00:11:37]} {[%emt 00:00:28]} 50.
Rxa2 {[%clk 00:09:13]} {[%emt 00:00:05]} Bxa2 {[%clk 00:12:04]} {[%emt
00:00:03]} 51. Bxe8 {[%clk 00:09:38]} {[%emt 00:00:05]} Bxb1 {[%clk 00:12:31]}
{[%emt 00:00:04]} 52. Bxd6 {[%clk 00:10:04]} {[%emt 00:00:04]} Be4 {[%clk
00:12:10]} {[%emt 00:00:49]} 53. g3 {[%clk 00:10:28]} {[%emt 00:00:08]} Nf5
{[%clk 00:12:02]} {[%emt 00:00:38]} 54. Bc7 {[%clk 00:10:51]} {[%emt 00:00:07]}
Kg7 {[%clk 00:12:15]} {[%emt 00:00:18]} 55. Bd7 {[%clk 00:10:58]} {[%emt
00:00:22]} Nh6 {[%clk 00:12:39]} {[%emt 00:00:06]} 56. Bd8 {[%clk 00:10:56]}
{[%emt 00:00:32]} Kf7 {[%clk 00:12:34]} {[%emt 00:00:35]} 57. Kf2 {[%clk
00:11:06]} {[%emt 00:00:20]} Bf5 {[%clk 00:12:49]} {[%emt 00:00:15]} 58. Bxf5
{[%clk 00:09:51]} {[%emt 00:01:45]} Nxf5 {[%clk 00:13:17]} {[%emt 00:00:02]} 59.
g4 {[%clk 00:08:48]} {[%emt 00:01:33]} Nd4 {[%clk 00:13:14]} {[%emt 00:00:33]}
60. Kg3 {[%clk 00:08:56]} {[%emt 00:00:22]} Ke6 {[%clk 00:13:38]} {[%emt
00:00:06]} 61. Kf2 {[%clk 00:09:09]} {[%emt 00:00:17]} Nb5 {[%clk 00:12:58]}
{[%emt 00:01:11]} 62. Kf3 {[%clk 00:09:00]} {[%emt 00:00:38]} Nd6 {[%clk
00:12:52]} {[%emt 00:00:36]} 63. Bc7 {[%clk 00:08:39]} {[%emt 00:00:52]} Nf7
{[%clk 00:12:54]} {[%emt 00:00:28]} 64. Ba5 {[%clk 00:08:58]} {[%emt 00:00:12]}
Ne5+ {[%clk 00:13:04]} {[%emt 00:00:19]} 65. Kg3 {[%clk 00:09:23]} {[%emt
00:00:05]} Kd5 {[%clk 00:12:54]} {[%emt 00:00:40]} 66. Bd8 {[%clk 00:09:30]}
{[%emt 00:00:24]} Ke6 {[%clk 00:13:18]} {[%emt 00:00:07]} 67. Ba5 {[%clk
00:09:55]} {[%emt 00:00:04]} Nf7 {[%clk 00:13:44]} {[%emt 00:00:03]} 68. Kf3
{[%clk 00:10:16]} {[%emt 00:00:09]} Kd5 {[%clk 00:14:04]} {[%emt 00:00:10]} 69.
Bb4 {[%clk 00:06:31]} {[%emt 00:04:15]} Ne5+ {[%clk 00:13:18]} {[%emt
00:01:16]} 70. Kg3 {[%clk 00:06:59]} {[%emt 00:00:03]} Ke4 {[%clk 00:13:03]}
{[%emt 00:00:44]} 71. Be7 {[%clk 00:07:18]} {[%emt 00:00:11]} Nd7 {[%clk
00:13:28]} {[%emt 00:00:05]} 72. Bd8 {[%clk 00:07:20]} {[%emt 00:00:28]} Kd3
{[%clk 00:13:43]} {[%emt 00:00:15]} 73. Kf3 {[%clk 00:07:22]} {[%emt 00:00:27]}
Kd4 {[%clk 00:13:39]} {[%emt 00:00:35]} 74. Be7 {[%clk 00:07:44]} {[%emt
00:00:08]} Kd5 {[%clk 00:13:55]} {[%emt 00:00:14]} 75. Bd8 {[%clk 00:08:06]}
{[%emt 00:00:08]} Ke6 {[%clk 00:14:13]} {[%emt 00:00:13]} 76. Kg3 {[%clk
00:08:01]} {[%emt 00:00:35]} Ne5 {[%clk 00:14:27]} {[%emt 00:00:16]} 1/2-1/2